fUSD/lending_fUSD_20251102
["ID","MTS","AMOUNT","RATE_DAILY","PERIOD"]
[392870523,1762093832724,-233.23601979,0.00014979,2]
[392870527,1762093837930,-905.0,0.00014958,2]
[392870528,1762093837940,-266.76398021,0.00014979,2]
[392870529,1762093837949,-500.0,0.00014979,2]
[392870530,1762093837959,-500.0,0.00014979,2]
[392870531,1762093837970,-500.0,0.00014979,2]
[392870532,1762093837979,-431.40261628,0.00014979,2]
[392870533,1762093837989,-500.0,0.00014979,2]
[392870534,1762093837999,-500.0,0.00014979,2]
[392870535,1762093838008,-395.25413118,0.00014979,2]
[392870536,1762093838016,-138182.50888878,0.0001498,2]
[392870537,1762093838026,-2093.16948,0.0001498,2]
[392870538,1762093838035,-496.47127164,0.00014991,2]
[392870539,1762093838044,-2140.0,0.00014994,2]
[392870540,1762093838055,-1028.484,0.00014994,2]
[392870541,1762093838064,-1321.8793699,0.00014995,2]
[392870542,1762093838073,-2155.3467972,0.00014995,2]
[392870543,1762093838082,-1970.8403525,0.00014995,2]
[392870544,1762093838091,-573.2676587,0.00014995,2]
[392870545,1762093838099,-259.27552469,0.00014999,2]
[392870546,1762093838110,-252.41039004,0.00014999,2]
[392870547,1762093838119,-500.0,0.00014999,2]
[392870548,1762093838128,-531.91586587,0.00014999,2]
[392870549,1762093838137,-515.88624332,0.00014999,2]
[392870550,1762093838146,-150.0,0.00014999,2]
[392870551,1762093838155,-263.33267186,0.00014999,2]
[392870552,1762093838164,-500.0,0.00014999,2]
[392870553,1762093838174,-500.0,0.00014999,2]
[392870554,1762093838183,-150.0,0.00014999,2]
[392870555,1762093838192,-500.0,0.00014999,2]
[392870556,1762093838202,-585.0,0.00014999,2]
[392870557,1762093838211,-500.0,0.00014999,2]
[392870559,1762093838219,-429.79976124,0.00014999,2]
[392870561,1762093838228,-500.0,0.00014999,2]
[392870563,1762093838238,-298.574218,0.00014999,2]
[392870565,1762093838247,-150.0,0.00014999,2]
[392870567,1762093838256,-150.0,0.00014999,2]
[392870569,1762093838265,-619.0,0.00015,2]
[392870570,1762093838275,-433317.05911892,0.00015,2]
[392870572,1762093838284,-215.3,0.00015,2]
[392870573,1762093838293,-412.53078746,0.00015,2]
[392870574,1762093838304,-258339.54272299,0.00015,2]
[392870576,1762093838313,-151223.1243879,0.00015,2]
[392870578,1762093838325,-666605.38090235,0.00015,2]
[392870579,1762093838335,-150.0,0.00015,2]
[392870580,1762093838344,-215.3,0.00015,2]
[392870582,1762093838354,-215.3,0.00015,2]
[392870584,1762093838365,-664.4399946,0.00015,2]
[392870586,1762093838374,-1000.0,0.00015,2]
[392870588,1762093838384,-1000.0,0.00015,2]
[392870590,1762093838393,-1000.0,0.00015,2]
[392870592,1762093838403,-1000.0,0.00015,2]
[392870593,1762093838413,-1000.0,0.00015,2]
[392870594,1762093838422,-1000.0,0.00015,2]
[392870595,1762093838432,-1000.0,0.00015,2]
[392870596,1762093838442,-1000.0,0.00015,2]
[392870597,1762093838451,-1000.0,0.00015,2]
[392870598,1762093838461,-849.81039014,0.00015,2]
[392870599,1762093838471,-556100.56005617,0.00015,2]
[392870600,1762093838484,-6814.58466524,0.00015,2]
[392870601,1762093838495,-13226.52834326,0.00015,2]
[392870602,1762093838507,-10578.40594631,0.00015,2]
[392870603,1762093838519,-302.06157732,0.00015,2]
[392870604,1762093838628,-3168.00000014,0.00015,2]
[392870605,1762093838639,-11507.32672946,0.00015,2]
[392870608,1762093839941,467.808836,0.00014608,2]
[392870611,1762093840282,-1185.0,0.00015,2]
[392870612,1762093840343,-2035.2638137,0.00015,2]
[392870629,1762093843005,-1957.08400098,0.00015,2]
[392870630,1762093843016,-1096.7890997,0.00015,2]
[392870631,1762093843027,-1085.24162559,0.00015,2]
[392870632,1762093843614,-146342.32490377,0.00015,2]
[392870633,1762093843667,-1412.41038301,0.00015,2]
[392870634,1762093843679,-3468.77963037,0.00015,2]
[392870635,1762093843690,-1856.33888095,0.00015,2]
[392870639,1762093847853,-546.03806591,0.00014958,2]
[392870640,1762093847878,-272.96193409,0.00014958,2]
[392870641,1762093847887,-1755.76597188,0.00015,2]
[392870642,1762093847898,-950.78578304,0.00015,2]
[392870643,1762093847930,-782.76473651,0.00015,2]
[392870644,1762093847941,-1115.47023058,0.00015,2]
[392870645,1762093847951,-1179.37157737,0.00015,2]
[392870646,1762093847962,-38700.0,0.00015,2]
[392870647,1762093848000,-1271.0,0.00014958,2]
[392870648,1762093848009,-2526.54608002,0.00015,2]
[392870657,1762093934952,500.0,0.00012011,2]
[392870658,1762093934995,500.0,0.00012011,2]
[392870659,1762093935107,500.0,0.00012011,2]
[392870660,1762093935302,500.0,0.00012011,2]
[392870661,1762093935349,500.0,0.00012011,2]
[392870662,1762093935480,500.0,0.00012011,2]
[392870663,1762093935745,500.0,0.00012011,2]
[392870664,1762093936136,500.0,0.00012011,2]
[392870665,1762093936506,500.0,0.00011,2]
[392870666,1762093937274,500.0,0.00011,2]
[392870667,1762093937404,500.0,0.00011,2]
[392870668,1762093937551,500.0,0.00011,2]
[392870669,1762093937821,516.63408232,0.00011,2]
[392870670,1762093938043,189.71665648,0.00011,2]
[392870671,1762093938345,607.78541496,0.00011,2]
[392870672,1762093938656,500.0,0.00012011,2]
[392870673,1762093939279,500.00000016,0.00012011,2]
[392870674,1762093942208,501.36195473,0.00012011,2]
[392870675,1762093943219,666.0,0.00012011,2]
[392870676,1762093943341,600.0,0.00012011,2]
[392870677,1762093943704,600.0,0.00012011,2]
[392870678,1762093944055,600.0,0.00012011,2]
[392870679,1762093944439,600.0,0.00012011,2]
[392870680,1762093944823,600.0,0.00012011,2]
[392870681,1762093945109,600.0,0.00012011,2]
[392870682,1762093945177,500.0,0.00012011,2]
[392870683,1762093945475,600.0,0.00012011,2]
[392870684,1762093945520,500.0,0.00011,2]
[392870685,1762093945821,508.22854783,0.00012011,2]
[392870686,1762093945848,91.77145217,0.00012011,2]
[392870687,1762093946260,600.0,0.00012011,2]
[392870688,1762093946533,581.25542615,0.00012011,2]
[392870689,1762093946585,600.0,0.00012011,2]
[392870690,1762093946917,600.0,0.00012011,2]
[392870691,1762093948112,600.0,0.00012011,2]
[392870692,1762093948228,600.0,0.00012011,2]
[392870693,1762093948326,155.90316145,0.00012011,2]
[392870694,1762093948386,600.0,0.00011,2]
[392870695,1762093948505,600.0,0.00011,2]
[392870696,1762093948655,600.0,0.00011,2]
[392870697,1762093948977,600.0,0.00011,2]
[392870698,1762093949322,600.0,0.00011,2]
[392870699,1762093949654,600.0,0.00011,2]
[392870700,1762093949961,2571.07996023,0.00014246,2]
[392870701,1762093949988,4780.77001128,0.00014246,2]
[392870702,1762093950033,600.0,0.00011,2]
[392870703,1762093950325,600.0,0.00011,2]
[392870704,1762093950638,600.0,0.00011,2]
[392870705,1762093951085,600.0,0.00011,2]
[392870706,1762093951418,600.0,0.00011,2]
[392870707,1762093951733,600.0,0.00011,2]
[392870708,1762093952081,720.68555769,0.00011,2]
[392870709,1762093971648,898.55443103,0.00014504,2]
[392870710,1762093971675,2174.29556897,0.00014504,2]
[392870715,1762093989366,170.0,0.00014599,2]
[392870716,1762093999514,646.62597852,0.00012011,2]
[392870717,1762094056498,500.0,0.00014576,2]
[392870733,1762094182211,500.0,0.00014356,2]
[392870736,1762094188172,500.0,0.00014356,2]
[392870737,1762094195424,500.0,0.00014356,2]
[392870738,1762094235359,929.07289492,0.00012011,2]
[392870739,1762094235410,500.0,0.00012011,2]
[392870740,1762094236123,513.47368086,0.00012011,2]
[392870741,1762094236335,500.0,0.00012011,2]
[392870742,1762094236705,714.55331608,0.00011,2]
[392870743,1762094243785,500.0,0.00012011,2]
[392870744,1762094244357,500.0,0.00012011,2]
[392870745,1762094245567,217.4580737,0.00014624,2]
[392870746,1762094247521,500.0,0.00012011,2]
[392870747,1762094247890,500.0,0.00012011,2]
[392870748,1762094248271,515.10927205,0.00011,2]
[392870749,1762094251865,500.0,0.00012011,2]
[392870750,1762094252040,1343.884608,0.0001464,2]
[392870751,1762094252209,500.0,0.00012011,2]
[392870752,1762094252550,500.0,0.00011,2]
[392870753,1762094262870,150.0,0.0001467,2]
[392870754,1762094291977,3699.36,0.00014043,2]
[392870755,1762094302651,427.25106402,0.00015,3]
[392870756,1762094352336,1694.78338444,0.00014657,2]
[392870757,1762094397806,166.66,0.00014475,2]
[392870758,1762094410444,221.66766337,0.0001456,2]
[392870776,1762094493593,-3000.0,0.00014714,2]
[392870778,1762094519122,1000.0,0.00013699,2]
[392870784,1762094533071,893.21759391,0.00014532,2]
[392870786,1762094549693,1000.0,0.00014069,2]
[392870803,1762094574945,217.45807369,0.00014657,2]
[392870806,1762094601528,263.0,0.00014538,2]
[392870807,1762094607186,263.0,0.00014577,2]
[392870808,1762094612376,263.0,0.0001442,2]
[392870809,1762094617098,263.0,0.00014339,2]
[392870810,1762094622028,214.0,0.00014575,2]
[392870811,1762094628628,214.0,0.00014507,2]
[392870812,1762094630986,250.0,0.00014067,2]
[392870813,1762094633528,795.83,0.00014067,2]
[392870818,1762094672111,1307.9,0.0001455,2]
[392870819,1762094693451,947.26728078,0.00014,2]
[392870820,1762094695191,1930.9287507,0.00014614,2]
[392870821,1762094695926,1307.9,0.000145,2]
[392870826,1762094715902,150.0,0.00013488,2]
[392870827,1762094719536,150.0,0.00013488,2]
[392870828,1762094719999,1307.9,0.000145,2]
[392870830,1762094722914,150.0,0.00013488,2]
[392870831,1762094722983,150.0,0.00013987,2]
[392870832,1762094723027,150.0,0.00014487,2]
[392870856,1762094743065,1307.9,0.000145,2]
[392870857,1762094766344,1307.9,0.000145,2]
[392870865,1762094823647,200.0,0.00014025,2]
[392870901,1762094832954,3186.0,0.00014405,2]
[392870904,1762094868454,150.0,0.00014013,2]
[392870905,1762094878041,4692.29,0.00014013,2]
[392870910,1762094894451,221.66766337,0.00014601,2]
[392870912,1762094912340,500.0,0.00014023,3]
[392870923,1762094989491,177.46,0.00011206,2]
[392870933,1762095014999,893.21759391,0.000146,2]
[392870934,1762095019362,1590.9,0.00013989,2]
[392870954,1762095032410,-214.0,0.00014705,2]
[392870955,1762095032420,-250.0,0.00014707,2]
[392870956,1762095032429,-300.0,0.0001471,2]
[392870957,1762095032438,-2888.0,0.00014714,2]
[392870958,1762095032448,-1625.29514,0.0001485,2]
[392870959,1762095032457,-1200.0,0.00014897,2]
[392870960,1762095032466,-300.0,0.00014898,2]
[392870961,1762095032476,-3242.3656,0.00014899,2]
[392870962,1762095032485,-1000.0,0.00014899,2]
[392870963,1762095032494,-150.17629209,0.00014899,2]
[392870964,1762095032503,-170.57713047,0.000149,2]
[392870965,1762095032512,-150.17629209,0.000149,2]
[392870966,1762095032521,-319.22968742,0.000149,2]
[392870967,1762095032531,-166.94666335,0.000149,2]
[392870968,1762095032540,-1630.85041255,0.000149,2]
[392870969,1762095032550,-1588.9362,0.000149,2]
[392870970,1762095032560,-1258.2058,0.000149,2]
[392870971,1762095032569,-166.59643672,0.000149,2]
[392870972,1762095032579,-5888.0,0.00014901,2]
[392870973,1762095032588,-170.0,0.00014912,2]
[392870975,1762095032598,-150.0,0.00014972,2]
[392870977,1762095032608,-150.0,0.00014972,2]
[392870979,1762095032617,-500.0,0.00014973,2]
[392870982,1762095032628,-500.0,0.00014973,2]
[392870983,1762095032641,-500.0,0.00014973,2]
[392870986,1762095032651,-500.0,0.00014973,2]
[392870989,1762095032661,-500.0,0.00014973,2]
[392870991,1762095032670,-500.0,0.00014973,2]
[392870993,1762095032679,-500.0,0.00014973,2]
[392870996,1762095032688,-500.0,0.00014973,2]
[392870997,1762095032699,-500.0,0.00014973,2]
[392870999,1762095032708,-500.0,0.00014973,2]
[392871002,1762095032718,-500.0,0.00014973,2]
[392871004,1762095032727,-171.73,0.0001498,2]
[392871005,1762095032736,-1625.29514,0.0001498,2]
[392871006,1762095032746,-193.11423477,0.00014986,2]
[392871008,1762095032756,-730.48611677,0.00014987,2]
[392871010,1762095032766,-1134.123,0.00014991,2]
[392871012,1762095032775,-166.114,0.00014991,2]
[392871014,1762095032785,-496.47127164,0.00014991,2]
[392871016,1762095032794,-5888.0,0.00014994,2]
[392871017,1762095032805,-1523.891,0.00014994,2]
[392871018,1762095032815,-1314.0,0.00014994,2]
[392871019,1762095032824,-819.0,0.00014994,2]
[392871020,1762095032833,-2140.0,0.00014994,2]
[392871021,1762095032843,-1028.484,0.00014994,2]
[392871023,1762095032852,-263.513,0.00014994,2]
[392871025,1762095032863,-477.45087779,0.00014995,2]
[392871027,1762095032872,-27758.53338092,0.00014995,2]
[392871029,1762095032881,-500.0,0.00014998,2]
[392871031,1762095032890,-437.7,0.00014998,2]
[392871033,1762095032900,-515.88624332,0.00014999,2]
[392871035,1762095032909,-500.0,0.00014999,2]
[392871037,1762095032918,-500.0,0.00014999,2]
[392871039,1762095032927,-516.33991343,0.00014999,2]
[392871041,1762095032937,-500.0,0.00014999,2]
[392871043,1762095032947,-500.0,0.00014999,2]
[392871045,1762095032955,-298.574218,0.00014999,2]
[392871047,1762095032964,-500.0,0.00014999,2]
[392871049,1762095032974,-46893.82359403,0.00014999,2]
[392871053,1762095033001,-2956.0,0.00014999,2]
[392871055,1762095033012,-35037.7143572,0.00014999,2]
[392871071,1762095038030,-1437.76353558,0.00014999,2]
[392871072,1762095038089,-12320.82355897,0.00014999,2]
[392871073,1762095038099,-276.55479921,0.00014999,2]
[392871074,1762095038109,-150.0,0.00014999,2]
[392871075,1762095038119,-500.0,0.00014999,2]
[392871076,1762095038128,-150.0,0.00014999,2]
[392871077,1762095038138,-150.0,0.00014999,2]
[392871078,1762095038148,-150.0,0.00014999,2]
[392871079,1762095038158,-259.27552469,0.00014999,2]
[392871080,1762095038168,-500.0,0.00014999,2]
[392871081,1762095038177,-500.0,0.00014999,2]
[392871082,1762095038187,-531.91586587,0.00014999,2]
[392871083,1762095038197,-232.31455886,0.00014999,2]
[392871084,1762095038207,-150.0,0.00014999,2]
[392871085,1762095038216,-150.0,0.00014999,2]
[392871086,1762095038225,-500.0,0.00014999,2]
[392871087,1762095038235,-150.0,0.00014999,2]
[392871088,1762095038244,-618.0,0.00014999,2]
[392871089,1762095038254,-429.79976124,0.00014999,2]
[392871090,1762095038263,-164.02054082,0.00014999,2]
[392871091,1762095038273,-150.0,0.00014999,2]
[392871092,1762095038282,-150.0,0.00014999,2]
[392871093,1762095038292,-150.0,0.00014999,2]
[392871094,1762095038302,-151.0,0.00015,2]
[392871095,1762095038311,-753.0,0.00015,2]
[392871096,1762095038323,-151.0,0.00015,2]
[392871097,1762095038333,-151.0,0.00015,2]
[392871098,1762095038342,-151.0,0.00015,2]
[392871099,1762095038352,-43505.90938149,0.00015,2]
[392871100,1762095038376,-3771.1245589,0.00015,2]
[392871101,1762095038388,-22303.50502723,0.00015,2]
[392871102,1762095038400,-5505.2692778,0.00015,2]
[392871103,1762095038412,-1190.86548836,0.00015,2]
[392871104,1762095038424,-2655.30669967,0.00015,2]
[392871105,1762095038468,-27401.39531438,0.00015,2]
[392871106,1762095038482,-23562.92544602,0.00015,2]
[392871108,1762095038506,-3708.19353842,0.00015,2]
[392871127,1762095040255,-21806.93821173,0.00015,2]
[392871128,1762095040272,-9506.78639084,0.00015,2]
[392871129,1762095040311,-1045033.8598644,0.00015,2]
[392871130,1762095040324,-181370.41666339,0.00015,2]
[392871131,1762095040337,-150.0,0.00015,2]
[392871132,1762095040350,-3440.91379885,0.00015,2]
[392871133,1762095040363,-150.0,0.00015,2]
[392871134,1762095040377,-1827.089827,0.00015,2]
[392871135,1762095040389,-150.0,0.00015,2]
[392871136,1762095040403,-5044.14018007,0.00015,2]
[392871137,1762095040417,-150.0,0.00015,2]
[392871138,1762095040430,-2986.91865901,0.00015,2]
[392871139,1762095040443,-500.0,0.00015,2]
[392871140,1762095040457,-500.0,0.00015,2]
[392871141,1762095040470,-1292744.70542505,0.00015,2]
[392871142,1762095040483,-296953.43520733,0.00015,2]
[392871143,1762095040497,-25243.62176603,0.00015,2]
[392871144,1762095040511,-45116.76843762,0.00015,2]
[392871145,1762095040524,-522.6568875,0.00015,2]
[392871146,1762095040537,-3000.0,0.00015,2]
[392871147,1762095040550,-331875.25363677,0.00015,2]
[392871148,1762095040563,-338439.49118092,0.00015,2]
[392871149,1762095040576,-162.59420467,0.00015,2]
[392871150,1762095040589,-181.0,0.00015,2]
[392871151,1762095040603,-47938.9047494,0.00015,2]
[392871152,1762095040628,-41313.35191166,0.00015,2]
[392871153,1762095040641,-8883.02962388,0.00015,2]
[392871154,1762095040745,-6927.7056,0.00015,2]
[392871155,1762095040760,-346.0024,0.00015,2]
[392871164,1762095043457,-299.1204,0.00015,2]
[392871165,1762095043476,-11194.45773125,0.00015,2]
[392871166,1762095043523,-1539.92047636,0.00015,2]
[392871172,1762095044077,-18522.91612975,0.00015,2]
[392871173,1762095045899,3774.71,0.00014569,2]
[392871179,1762095046363,-905.0,0.00014994,2]
[392871180,1762095046373,-1174407.37027054,0.00015,2]
[392871181,1762095046387,-311078.33265803,0.00015,2]
[392871182,1762095046483,-1312.36740542,0.00015,2]
[392871183,1762095046497,-2028.9238136,0.00015,2]
[392871184,1762095046509,-2420.11577205,0.00015,2]
[392871185,1762095046521,-2631.51295339,0.00015,2]
[392871186,1762095046553,-313.49999751,0.00015,2]
[392871187,1762095046565,-368366.38142488,0.00015,2]
[392871207,1762095210302,183.6,0.0001414,2]
[392871219,1762095235679,7000.0,0.00015,3]
[392871229,1762095247808,1090.2,0.00014115,2]
[392871241,1762095278817,1699.0,0.000102,5]
[392871247,1762095287082,168.0,0.0001448,2]
[392871259,1762095307692,7000.0,0.00015,3]
[392871302,1762095362410,7000.0,0.00015,3]
[392871305,1762095375130,219.35862521,0.00014578,2]
[392871306,1762095405886,8267.0,0.00015,3]
[392871312,1762095496772,2751.0,0.00014077,2]
[392871313,1762095497561,893.21759391,0.00014532,2]
[392871316,1762095573542,308.0,9.989e-05,2]
[392871317,1762095573609,308.0,9.989e-05,2]
[392871318,1762095573824,308.0,9.989e-05,2]
[392871319,1762095574121,308.0,9.989e-05,2]
[392871320,1762095574425,308.0,9.989e-05,2]
[392871321,1762095574712,308.0,9.989e-05,2]
[392871322,1762095575025,308.0,9.989e-05,2]
[392871323,1762095575322,308.0,9.989e-05,2]
[392871324,1762095575665,308.0,9.989e-05,2]
[392871329,1762095612242,1892.99,0.00014041,2]
[392871333,1762095637594,4425.23,0.00014686,2]
[392871338,1762095734906,500.0,0.00012011,2]
[392871340,1762095743788,326.65407,0.00012011,2]
[392871345,1762095791006,13959.53,0.00014019,2]
[392871347,1762095796850,166.66,0.00013699,2]
[392871348,1762095797494,166.66,0.00013903,2]
[392871349,1762095797689,166.66,0.00014107,2]
[392871350,1762095797990,166.66,0.00014312,2]
[392871351,1762095798172,166.66,0.00014516,2]
[392871356,1762095870963,1500.0,0.0001401,2]
[392871359,1762095905051,1035.43,0.000142,2]
[392871361,1762095913384,270.00997026,0.00013488,2]
[392871362,1762095919450,1035.43,0.000142,2]
[392871363,1762095922410,150.0,0.00013488,2]
[392871364,1762095923031,150.0,0.00013576,2]
[392871365,1762095923648,150.0,0.00013664,2]
[392871366,1762095923725,150.0,0.00013752,2]
[392871367,1762095923816,150.0,0.0001384,2]
[392871368,1762095923884,150.0,0.00013928,2]
[392871369,1762095923939,150.0,0.00014017,2]
[392871370,1762095924041,150.0,0.00014105,2]
[392871371,1762095924143,150.0,0.00014193,2]
[392871372,1762095924195,150.0,0.00014281,2]
[392871373,1762095924249,150.0,0.00014369,2]
[392871374,1762095924309,150.0,0.00014457,2]
[392871375,1762095924357,150.0,0.00014546,2]
[392871376,1762095924422,150.0,0.00014634,2]
[392871377,1762095925973,507.44,0.00013901,2]
[392871378,1762095934381,150.0,0.00013488,2]
[392871379,1762095943929,1035.43,0.000145,2]
[392871380,1762095953040,1035.43,0.000145,2]
[392871381,1762095954124,488.21,0.00013965,2]
[392871384,1762095963367,1035.43,0.000145,2]
[392871385,1762095973023,1035.43,0.000145,2]
[392871386,1762095978316,183.39814325,0.00014532,2]
[392871388,1762096000779,1035.43,0.000145,2]
[392871393,1762096059965,768.36,6.977e-05,2]
[392871394,1762096060080,768.36,7.344e-05,2]
[392871395,1762096060337,768.36,7.711e-05,2]
[392871396,1762096060560,768.36,8.079e-05,2]
[392871397,1762096060799,768.36,8.446e-05,2]
[392871398,1762096061015,768.36,8.813e-05,2]
[392871401,1762096061612,768.36,9.18e-05,2]
[392871402,1762096061678,768.36,9.547e-05,2]
[392871404,1762096061750,768.36,9.915e-05,2]
[392871405,1762096061825,768.36,0.00010282,2]
[392871406,1762096061992,768.36,0.00010649,2]
[392871407,1762096062177,768.36,0.00011016,2]
[392871408,1762096062382,768.36,0.00011383,2]
[392871409,1762096062832,768.36,0.00011751,2]
[392871410,1762096062994,768.36,0.00012118,2]
[392871411,1762096063205,768.36,0.00012485,2]
[392871412,1762096063441,768.36,0.00012852,2]
[392871413,1762096063653,768.36,0.00013219,2]
[392871414,1762096063867,768.36,0.00013587,2]
[392871415,1762096064213,768.36,0.00013954,2]
[392871417,1762096073047,5888.0,0.00014368,2]
[392871420,1762096076894,721.14155339,0.00014,2]
[392871421,1762096077708,5888.0,0.00014647,2]
[392871442,1762096088969,9016.33,0.00013954,2]
[392871474,1762096140304,224.81,0.00013953,2]
[392871493,1762096232544,-166.66,0.0001472,2]
[392871494,1762096232558,-150.0,0.00014722,2]
[392871495,1762096232572,-300.0,0.00014728,2]
[392871496,1762096232585,-224.81,0.00014729,2]
[392871497,1762096232599,-152.45496804,0.00014776,2]
[392871498,1762096232611,-351.0,0.00014787,2]
[392871499,1762096232625,-150.0,0.0001481,2]
[392871500,1762096232639,-2857.89042692,0.0001481,2]
[392871501,1762096232651,-152.45496803,0.00014838,2]
[392871502,1762096232664,-1819.54105,0.0001485,2]
[392871503,1762096232676,-217.0,0.00014876,2]
[392871504,1762096232690,-150.0,0.00014898,2]
[392871506,1762096232702,-300.0,0.00014899,2]
[392871508,1762096232714,-300.0,0.00014899,2]
[392871510,1762096232727,-1200.0,0.00014899,2]
[392871513,1762096232740,-189.7146,0.000149,2]
[392871515,1762096232752,-197.76375723,0.000149,2]
[392871517,1762096232765,-192.34186848,0.000149,2]
[392871520,1762096232777,-152.45496803,0.000149,2]
[392871522,1762096232791,-89.36173092,0.000149,2]
[392871577,1762096234123,-910.63826908,0.000149,2]
[392871578,1762096234153,-2500.0,0.000149,2]
[392871579,1762096234170,-161.1391929,0.000149,2]
[392871580,1762096234179,-172.41133011,0.000149,2]
[392871581,1762096234189,-2997.9506,0.000149,2]
[392871582,1762096234197,-1200.0,0.00014907,2]
[392871583,1762096234206,-462.57399663,0.00014908,2]
[392871584,1762096234215,-1062.34032637,0.00014908,2]
[392871585,1762096234224,-168.0,0.00014909,2]
[392871586,1762096234233,-1014.39922561,0.00014926,2]
[392871587,1762096234242,-477.45087779,0.00014957,2]
[392871588,1762096234250,-419.2814,0.00014959,2]
[392871589,1762096234259,-2140.0,0.00014969,2]
[392871590,1762096234268,-150.0,0.00014972,2]
[392871591,1762096234278,-500.0,0.00014973,2]
[392871592,1762096234288,-500.0,0.00014973,2]
[392871593,1762096234297,-500.0,0.00014973,2]
[392871594,1762096234306,-500.0,0.00014973,2]
[392871595,1762096234315,-500.0,0.00014973,2]
[392871596,1762096234325,-500.0,0.00014973,2]
[392871597,1762096234334,-500.0,0.00014973,2]
[392871598,1762096234343,-274.15603097,0.00014973,2]
[392871599,1762096234352,-500.0,0.00014973,2]
[392871600,1762096234362,-501.63643931,0.00014973,2]
[392871601,1762096234371,-500.0,0.00014973,2]
[392871602,1762096234382,-500.0,0.00014973,2]
[392871603,1762096234391,-335.41025394,0.00014973,2]
[392871604,1762096234404,-500.0,0.00014973,2]
[392871605,1762096234413,-500.0,0.00014973,2]
[392871606,1762096234422,-1819.54105,0.0001498,2]
[392871607,1762096234432,-164.37141159,0.00014986,2]
[392871608,1762096234441,-496.47127164,0.0001499,2]
[392871609,1762096234450,-907.298,0.00014991,2]
[392871610,1762096234459,-131.23732219,0.00014991,2]
[392871611,1762096234471,-34.87667781,0.00014991,2]
[392871612,1762096234480,-151.0,0.00014992,2]
[392871613,1762096234489,-437.67904849,0.00014999,2]
[392871614,1762096234498,-432.2575351,0.00014999,2]
[392871615,1762096234508,-500.0,0.00014999,2]
[392871616,1762096234517,-500.0,0.00014999,2]
[392871617,1762096234526,-500.0,0.00014999,2]
[392871618,1762096234535,-500.0,0.00014999,2]
[392871619,1762096234549,-500.0,0.00014999,2]
[392871620,1762096234558,-500.0,0.00014999,2]
[392871621,1762096234567,-500.0,0.00014999,2]
[392871622,1762096234576,-500.0,0.00014999,2]
[392871623,1762096234586,-500.0,0.00014999,2]
[392871624,1762096234595,-500.0,0.00014999,2]
[392871625,1762096234604,-500.0,0.00014999,2]
[392871626,1762096234613,-500.0,0.00014999,2]
[392871627,1762096234622,-500.0,0.00014999,2]
[392871628,1762096234632,-500.0,0.00014999,2]
[392871629,1762096234641,-500.0,0.00014999,2]
[392871630,1762096234650,-500.0,0.00014999,2]
[392871631,1762096234660,-500.0,0.00014999,2]
[392871632,1762096234669,-500.0,0.00014999,2]